fUST/lending_fUST_20250613
["ID","MTS","AMOUNT","RATE_DAILY","PERIOD"]
[365611743,1749805843758,-153.0,0.000228,2]
[365611745,1749805843768,-153.0,0.000228,2]
[365611747,1749805843778,-153.0,0.000228,2]
[365611759,1749805843884,-3000.0,0.000228,2]
[365611761,1749805843896,-151.0,0.000228,8]
[365611763,1749805843905,-3000.0,0.0002281,2]
[365611765,1749805843916,-3000.0,0.0002282,2]
[365611767,1749805843925,-3000.0,0.0002283,2]
[365611769,1749805843935,-1143.85658911,0.00022831,8]
[365611771,1749805843945,-3000.0,0.0002284,2]
[365611773,1749805843956,-1587.38,0.0002284,2]
[365611775,1749805843965,-3000.0,0.0002285,2]
[365611777,1749805843975,-3000.0,0.0002286,2]
[365611779,1749805843985,-151.0,0.00022865,7]
[365611781,1749805843994,-151.0,0.00022865,7]
[365611783,1749805844004,-151.919038,0.00022865,7]
[365611785,1749805844013,-151.0,0.00022865,7]
[365611787,1749805844022,-1500.0,0.00022865,2]
[365611789,1749805844032,-3000.0,0.0002287,2]
[365611791,1749805844041,-3000.0,0.0002288,2]
[365611793,1749805844051,-3000.0,0.0002289,2]
[365611795,1749805844060,-1587.38,0.00022899,2]
[365611797,1749805844069,-3000.0,0.000229,2]
[365611799,1749805844078,-151.0,0.000229,8]
[365611801,1749805844087,-168.12148562,0.000229,2]
[365611803,1749805844097,-3000.0,0.0002291,2]
[365611805,1749805844107,-3000.0,0.0002292,2]
[365611807,1749805844116,-3000.0,0.0002293,2]
[365611809,1749805844126,-5000.0,0.00022939,2]
[365611811,1749805844136,-3000.0,0.0002294,2]
[365611813,1749805844146,-160.0,0.00022944,2]
[365611815,1749805844156,-229.78555783,0.00022944,2]
[365611817,1749805844166,-213.24139183,0.00022944,2]
[365611819,1749805844175,-1587.38,0.00022949,2]
[365611821,1749805844184,-3000.0,0.0002295,2]
[365611823,1749805844193,-1261.0,0.00022957,2]
[365611825,1749805844202,-3000.0,0.0002296,2]
[365611827,1749805844211,-1143.85658911,0.00022969,8]
[365611829,1749805844221,-3000.0,0.0002297,2]
[365611831,1749805844234,-500.0,0.00022973,2]
[365611833,1749805844243,-500.0,0.00022973,2]
[365611835,1749805844253,-500.0,0.00022973,2]
[365611837,1749805844262,-500.0,0.00022973,2]
[365611839,1749805844273,-500.0,0.00022973,2]
[365611841,1749805844282,-500.0,0.00022973,2]
[365611843,1749805844292,-504.61170123,0.00022973,2]
[365611845,1749805844303,-500.0,0.00022973,2]
[365611847,1749805844313,-500.0,0.00022973,2]
[365611849,1749805844322,-347.90623513,0.00022973,2]
[365611851,1749805844332,-500.0,0.00022973,2]
[365611853,1749805844341,-500.0,0.00022973,2]
[365611855,1749805844351,-500.0,0.00022973,2]
[365611856,1749805844360,-600.0,0.00022973,2]
[365611857,1749805844370,-165.59022411,0.00022973,2]
[365611858,1749805844381,-500.0,0.00022973,2]
[365611859,1749805844391,-500.0,0.00022973,2]
[365611860,1749805844401,-500.0,0.00022973,2]
[365611861,1749805844411,-500.0,0.00022973,2]
[365611862,1749805844420,-500.0,0.00022973,2]
[365611863,1749805844430,-500.0,0.00022973,2]
[365611864,1749805844441,-500.0,0.00022973,2]
[365611865,1749805844450,-500.0,0.00022973,2]
[365611866,1749805844460,-500.0,0.00022973,2]
[365611867,1749805844470,-500.0,0.00022973,2]
[365611868,1749805844480,-500.0,0.00022973,2]
[365611869,1749805844490,-500.0,0.00022973,2]
[365611870,1749805844499,-389.84975825,0.00022973,2]
[365611871,1749805844509,-500.0,0.00022973,2]
[365611872,1749805844519,-500.0,0.00022973,2]
[365611873,1749805844529,-500.0,0.00022973,2]
[365611874,1749805844538,-500.0,0.00022973,2]
[365611875,1749805844547,-500.0,0.00022973,2]
[365611876,1749805844557,-500.0,0.00022973,2]
[365611877,1749805844566,-3000.0,0.0002298,2]
[365611878,1749805844575,-1587.38,0.00022989,2]
[365611879,1749805844584,-1587.38,0.00022989,2]
[365611880,1749805844594,-1587.38,0.00022989,2]
[365611881,1749805844603,-1587.38,0.00022989,2]
[365611882,1749805844612,-1587.466673,0.00022989,2]
[365611883,1749805844622,-3000.0,0.0002299,2]
[365611884,1749805844631,-65398.5681219,0.0002299,2]
[365611885,1749805844639,-151.0,0.0002299,7]
[365611886,1749805844648,-151.0,0.0002299,7]
[365611887,1749805844657,-151.0,0.0002299,7]
[365611889,1749805844667,-13697.77817832,0.00023,20]
[365611891,1749805844677,-3028.05637756,0.00023,2]
[365611893,1749805844686,-500.0,0.00023,15]
[365611895,1749805844696,-347128.79645589,0.00023,3]
[365611915,1749805844886,-460.0,0.00021095,4]
[365611917,1749805844897,-380.0,0.00021369,4]
[365611919,1749805844906,-500.0,0.00022466,2]
[365611921,1749805844916,-14650.47573155,0.00023,3]
[365611924,1749805844928,-27690.02565896,0.00023,3]
[365611926,1749805844940,-5227.08861625,0.00023,3]
[365611928,1749805844951,-308100.0,0.00023,3]
[365611938,1749805845041,-151.0,0.00022191,2]
[365611940,1749805845051,-151.0,0.00022191,2]
[365611942,1749805845061,-70526.0,0.00023,3]
[365611945,1749805845076,-26677.61353735,0.00023,3]
[365611946,1749805845086,-179.0,0.00023,5]
[365611948,1749805845095,-180.24433388,0.00023,3]
[365611950,1749805845105,-179.0,0.00023,4]
[365611952,1749805845114,-3000.0,0.00023,2]
[365611954,1749805845124,-156.037638,0.00023,7]
[365611956,1749805845133,-151.0,0.00023,7]
[365611958,1749805845144,-151.0,0.00023,7]
[365611960,1749805845154,-151.0,0.00023,7]
[365611962,1749805845163,-151.0,0.00023,7]
[365611964,1749805845172,-151.0,0.00023,7]
[365611966,1749805845182,-151.0,0.00023,7]
[365611968,1749805845191,-151.0,0.00023,7]
[365611970,1749805845201,-151.0,0.00023,7]
[365611972,1749805845211,-151.0,0.00023,7]
[365611974,1749805845222,-151.0,0.00023,7]
[365611977,1749805845238,-151.0,0.00023,7]
[365611979,1749805845248,-151.0,0.00023,7]
[365611980,1749805845257,-151.0,0.00023,7]
[365611982,1749805845267,-151.0,0.00023,7]
[365611984,1749805845280,-151.0,0.00023,7]
[365611986,1749805845291,-151.0,0.00023,7]
[365611989,1749805845301,-151.0,0.00023,7]
[365611990,1749805845311,-151.0,0.00023,7]
[365611992,1749805845321,-231.658662,0.00023,7]
[365611994,1749805845330,-151.0,0.00023,7]
[365611996,1749805845340,-114.76915977,0.00023,7]
[365611999,1749805845352,-685.76941023,0.00023,7]
[365612001,1749805845363,-800.53857,0.00023,7]
[365612003,1749805845374,-800.53857,0.00023,7]
[365612005,1749805845384,-800.53857,0.00023,7]
[365612007,1749805845395,-151.0,0.00023,7]
[365612009,1749805845403,-151.0,0.00023,7]
[365612011,1749805845412,-835.28007164,0.00023,3]
[365612013,1749805845421,-151.0,0.00023,7]
[365612015,1749805845430,-229.78555783,0.00023,3]
[365612017,1749805845439,-151.0,0.00023,7]
[365612019,1749805845448,-151.0,0.00023,7]
[365612021,1749805845457,-151.0,0.00023,7]
[365612023,1749805845467,-213.24139183,0.00023,3]
[365612025,1749805845477,-213.24139183,0.00023,7]
[365612027,1749805845486,-424.32678023,0.00023,3]
[365612029,1749805845495,-151.0,0.00023,7]
[365612031,1749805845505,-277.359925,0.00023,7]
[365612033,1749805845514,-160.0,0.00023,3]
[365612035,1749805845524,-151.0,0.00023,7]
[365612037,1749805845533,-151.0,0.00023,7]
[365612039,1749805845542,-2658.58666186,0.00023,3]
[365612041,1749805845555,-9872.44003187,0.00023,3]
[365612043,1749805845564,-12531.02669373,0.00023,7]
[365612045,1749805845574,-4724.48,0.00023002,3]
[365612047,1749805845583,-2362.24,0.00023002,3]
[365612049,1749805845592,-150.119,0.00023006,2]
[365612051,1749805845601,-965.034,0.00023006,2]
[365612053,1749805845611,-655.847,0.00023006,2]
[365612055,1749805845621,-2160.0,0.00023006,2]
[365612056,1749805845630,-3000.0,0.0002301,2]
[365612058,1749805845639,-151.0,0.00023013,7]
[365612060,1749805845650,-151.0,0.00023013,7]
[365612062,1749805845659,-460.0,0.00023013,4]
[365612064,1749805845669,-330.0,0.00023013,4]
[365612066,1749805845678,-616.93,0.00023013,2]
[365612068,1749805845688,-1456.25,0.00023013,4]
[365612070,1749805845698,-686.66,0.00023013,4]
[365612072,1749805845709,-460.0,0.00023013,4]
[365612074,1749805845719,-747.53,0.00023013,4]
[365612076,1749805845730,-1041.86,0.00023013,4]
[365612078,1749805845740,-654.65,0.00023013,4]
[365612080,1749805845751,-460.0,0.00023013,4]
[365612082,1749805845762,-321.95,0.00023013,4]
[365612085,1749805845775,-460.0,0.00023013,4]
[365612086,1749805845786,-465.24,0.00023013,4]
[365612088,1749805845797,-553.89,0.00023013,4]
[365612090,1749805845807,-1290.11,0.00023013,4]
[365612092,1749805845817,-1528.23,0.00023013,4]
[365612095,1749805845829,-1484.13,0.00023013,4]
[365612097,1749805845840,-1050.94,0.00023013,4]
[365612099,1749805845850,-1285.01,0.00023013,4]
[365612101,1749805845861,-440.0,0.00023013,4]
[365612103,1749805845873,-970.44,0.00023013,4]
[365612105,1749805845888,-460.0,0.00023013,4]
[365612107,1749805845905,-460.0,0.00023013,4]
[365612109,1749805845915,-936.65,0.00023013,4]
[365612111,1749805845926,-455.06,0.00023013,4]
[365612113,1749805845936,-183.0,0.00023014,7]
[365612115,1749805845946,-160.0,0.0002302,5]
[365612117,1749805845956,-3000.0,0.0002302,2]
[365612119,1749805845966,-3000.0,0.0002303,2]
[365612121,1749805845976,-5060.513168,0.0002304,2]
[365612123,1749805845987,-1143.85658911,0.00023107,8]
[365612125,1749805845998,-160.2242514,0.00023151,2]
[365612126,1749805846010,-162.67507476,0.00023151,2]
[365612128,1749805846021,-196.0,0.00023212,2]
[365612131,1749805846031,-361.16510324,0.00023213,2]
[365612132,1749805846042,-3004.0,0.00023236,3]
[365612134,1749805846053,-1143.85658911,0.00023245,8]
[365612136,1749805846069,-6824.89,0.0002327,2]
[365612138,1749805846084,-460.0,0.00023287,4]
[365612140,1749805846096,-616.93,0.00023287,2]
[365612143,1749805846108,-1456.25,0.00023287,4]
[365612145,1749805846119,-686.66,0.00023287,4]
[365612146,1749805846129,-460.0,0.00023287,4]
[365612148,1749805846139,-747.53,0.00023287,4]
[365612150,1749805846153,-1041.86,0.00023287,4]
[365612152,1749805846163,-654.65,0.00023287,4]
[365612165,1749805846278,-561.4226089,0.00023287,4]
[365612167,1749805846289,-460.0,0.00023287,4]
[365612169,1749805846303,-465.24,0.00023287,4]
[365612171,1749805846324,-553.89,0.00023287,4]
[365612173,1749805846334,-1290.11,0.00023287,4]
[365612175,1749805846344,-1528.23,0.00023287,4]
[365612177,1749805846355,-1484.13,0.00023287,4]
[365612179,1749805846365,-1050.94,0.00023287,4]
[365612181,1749805846375,-1285.01,0.00023287,4]
[365612182,1749805846385,-970.44,0.00023287,4]
[365612183,1749805846395,-151.5374046,0.00023287,4]
[365612186,1749805846413,-460.0,0.00023287,4]
[365612188,1749805846426,-936.65,0.00023287,4]
[365612190,1749805846439,-198.71264452,0.0002329,4]
[365612192,1749805846451,-198.71,0.0002329,4]
[365612194,1749805846462,-154.55427907,0.0002329,4]
[365612196,1749805846472,-154.55427907,0.0002329,4]
[365612198,1749805846483,-154.55427907,0.0002329,4]
[365612200,1749805846494,-154.55427907,0.0002329,4]
[365612202,1749805846505,-154.55427907,0.0002329,4]
[365612204,1749805846515,-154.55,0.0002329,4]
[365612206,1749805846525,-158.64659567,0.0002329,4]
[365612208,1749805846536,-158.64659567,0.0002329,4]
[365612211,1749805846546,-158.64659567,0.0002329,4]
[365612213,1749805846557,-158.64659567,0.0002329,4]
[365612215,1749805846567,-158.64659567,0.0002329,4]
[365612217,1749805846577,-158.64659567,0.0002329,4]
[365612219,1749805846587,-158.64659567,0.0002329,4]
[365612220,1749805846597,-158.64659567,0.0002329,4]
[365612222,1749805846607,-158.64,0.0002329,4]
[365612224,1749805846617,-166.57892546,0.0002329,4]
[365612226,1749805846627,-166.57892546,0.0002329,4]
[365612229,1749805846637,-166.57892546,0.0002329,4]
[365612231,1749805846649,-166.57892546,0.0002329,4]
[365612232,1749805846659,-166.57892546,0.0002329,4]
[365612234,1749805846669,-166.57892546,0.0002329,4]
[365612236,1749805846679,-166.57892546,0.0002329,4]
[365612238,1749805846689,-166.57892546,0.0002329,4]
[365612240,1749805846699,-166.57892546,0.0002329,4]
[365612242,1749805846709,-166.57892546,0.0002329,4]
[365612244,1749805846719,-166.57892546,0.0002329,4]
[365612246,1749805846729,-166.57892546,0.0002329,4]
[365612248,1749805846738,-166.57892546,0.0002329,4]
[365612250,1749805846748,-166.57892546,0.0002329,4]
[365612252,1749805846759,-166.57892546,0.0002329,4]
[365612254,1749805846770,-166.57892546,0.0002329,4]
[365612256,1749805846779,-166.57892546,0.0002329,4]
[365612258,1749805846789,-166.57892546,0.0002329,4]
[365612260,1749805846799,-166.57892546,0.0002329,4]
[365612262,1749805846810,-166.57,0.0002329,4]
[365612264,1749805846820,-245.28526043,0.0002329,4]
[365612266,1749805846830,-245.28526043,0.0002329,4]
[365612268,1749805846840,-245.28526043,0.0002329,4]
[365612270,1749805846850,-245.28526043,0.0002329,4]
[365612272,1749805846860,-245.28526043,0.0002329,4]
[365612274,1749805846870,-245.28526043,0.0002329,4]
[365612276,1749805846880,-245.28526043,0.0002329,4]
[365612278,1749805846890,-245.28526043,0.0002329,4]
[365612280,1749805846902,-245.28526043,0.0002329,4]
[365612282,1749805846911,-245.28526043,0.0002329,4]
[365612284,1749805846921,-245.28526043,0.0002329,4]
[365612286,1749805846931,-245.28526043,0.0002329,4]
[365612288,1749805846941,-245.28526043,0.0002329,4]
[365612290,1749805846950,-245.28526043,0.0002329,4]
[365612292,1749805846960,-245.28526043,0.0002329,4]
[365612294,1749805846969,-245.28526043,0.0002329,4]
[365612296,1749805846979,-245.28526043,0.0002329,4]
[365612298,1749805846989,-245.28526043,0.0002329,4]
[365612299,1749805846999,-245.28526043,0.0002329,4]
[365612301,1749805847009,-245.28,0.0002329,4]
[365612304,1749805847019,-572.33227433,0.0002329,4]
[365612306,1749805847029,-572.33227433,0.0002329,4]
[365612308,1749805847038,-572.33227433,0.0002329,4]
[365612309,1749805847048,-572.33227433,0.0002329,4]
[365612311,1749805847059,-572.33227433,0.0002329,4]
[365612313,1749805847069,-572.33227433,0.0002329,4]
[365612315,1749805847079,-572.33227433,0.0002329,4]
[365612317,1749805847088,-572.33227433,0.0002329,4]
[365612319,1749805847097,-572.33227433,0.0002329,4]
[365612321,1749805847107,-572.33227433,0.0002329,4]
[365612323,1749805847116,-572.33227433,0.0002329,4]
[365612325,1749805847125,-572.33227433,0.0002329,4]
[365612327,1749805847134,-572.33227433,0.0002329,4]
[365612329,1749805847144,-572.33227433,0.0002329,4]
[365612331,1749805847154,-572.33227433,0.0002329,4]
[365612333,1749805847163,-572.33227433,0.0002329,4]
[365612335,1749805847173,-572.33227433,0.0002329,4]
[365612337,1749805847183,-572.33227433,0.0002329,4]
[365612339,1749805847193,-572.33227433,0.0002329,4]
[365612341,1749805847202,-572.33,0.0002329,4]
[365612343,1749805847212,-3000.0,0.00023296,2]
[365612345,1749805847222,-3009.83410739,0.000233,2]
[365612346,1749805847234,-1176.583454,0.00023324,3]
[365612347,1749805847243,-160.0,0.00023365,6]
[365612348,1749805847253,-14404.98038222,0.00023372,2]
[365612349,1749805847263,-3000.0,0.00023382,3]
[365612350,1749805847273,-1143.85658911,0.00023383,9]
[365612351,1749805847282,-151.0,0.000234,8]
[365612352,1749805847293,-2000.0,0.00023413,2]
[365612353,1749805847303,-215.0738,0.00023464,2]
[365612354,1749805847313,-4000.0,0.00023489,2]
[365612355,1749805847323,-151.0,0.00023489,7]
[365612356,1749805847332,-267.101561,0.00023489,7]
[365612357,1749805847341,-800.0,0.00023495,2]
[365612358,1749805847351,-188.072712,0.00023518,2]
[365612360,1749805847361,-1000.0,0.00023521,2]
[365612362,1749805847370,-1000.0,0.00023521,2]
[365612364,1749805847379,-1000.0,0.00023521,2]
[365612366,1749805847390,-500.0,0.00023521,2]
[365612368,1749805847399,-1000.0,0.00023521,2]
[365612370,1749805847409,-1000.0,0.00023521,2]
[365612372,1749805847418,-507.4259494,0.00023521,2]
[365612374,1749805847427,-1000.0,0.00023521,2]
[365612376,1749805847436,-1000.0,0.00023521,2]
[365612378,1749805847446,-1000.0,0.00023521,2]
[365612380,1749805847455,-1000.0,0.00023521,2]
[365612382,1749805847464,-1200.0,0.00023521,2]
[365612384,1749805847473,-1000.0,0.00023521,2]
[365612386,1749805847482,-548.790575,0.00023521,2]
[365612388,1749805847491,-1000.0,0.00023521,2]
[365612390,1749805847501,-500.0,0.00023521,2]
[365612392,1749805847510,-1129.63536797,0.00023521,2]
[365612394,1749805847519,-1000.0,0.00023521,2]
[365612396,1749805847529,-983.20374303,0.00023521,2]
[365612398,1749805847538,-500.0,0.00023521,2]
[365612400,1749805847547,-1000.0,0.00023521,2]
[365612402,1749805847557,-500.0,0.00023521,2]
[365612404,1749805847566,-981.13826857,0.00023521,2]
[365612406,1749805847575,-500.0,0.00023521,2]
[365612408,1749805847584,-546.17308086,0.00023521,2]
[365612410,1749805847594,-1000.0,0.00023521,2]
[365612412,1749805847603,-1000.0,0.00023521,2]
[365612414,1749805847613,-225.8836721,0.00023521,2]
[365612416,1749805847623,-1000.0,0.00023521,2]
[365612418,1749805847632,-1000.0,0.00023521,2]
[365612420,1749805847642,-1143.85658911,0.00023521,9]
[365612422,1749805847655,-460.0,0.00023561,4]
[365612424,1749805847665,-151.0,0.00023561,7]
[365612426,1749805847674,-151.0,0.00023561,7]
[365612429,1749805847684,-151.0,0.00023561,7]
[365612430,1749805847694,-616.93,0.00023561,2]
[365612432,1749805847704,-1456.25,0.00023561,4]
[365612434,1749805847714,-153.315699,0.00023561,7]
[365612436,1749805847724,-800.53857,0.00023561,7]
[365612439,1749805847734,-800.53857,0.00023561,7]
[365612441,1749805847743,-686.66,0.00023561,4]
[365612443,1749805847752,-460.0,0.00023561,4]
[365612445,1749805847762,-747.53,0.00023561,4]
[365612447,1749805847771,-1041.86,0.00023561,4]
[365612449,1749805847780,-654.65,0.00023561,4]
[365612450,1749805847789,-151.0,0.00023561,7]
[365612452,1749805847799,-460.0,0.00023561,4]
[365612455,1749805847809,-465.24,0.00023561,4]
[365612457,1749805847819,-553.89,0.00023561,4]
[365612459,1749805847828,-1290.11,0.00023561,4]
[365612461,1749805847837,-1528.23,0.00023561,4]
[365612463,1749805847845,-1484.13,0.00023561,4]
[365612465,1749805847854,-1050.94,0.00023561,4]
[365612467,1749805847864,-1285.01,0.00023561,4]
[365612469,1749805847873,-970.44,0.00023561,4]
[365612471,1749805847882,-151.0,0.00023561,7]
[365612473,1749805847892,-460.0,0.00023561,4]
[365612475,1749805847904,-936.65,0.00023561,4]
[365612477,1749805847913,-151.0,0.00023562,7]
[365612479,1749805847924,-151.0,0.00023562,7]
[365612481,1749805847934,-5000.0,0.00023582,2]
[365612483,1749805847943,-806.78523624,0.00023583,2]
[365612485,1749805847952,-800.0,0.00023589,2]
[365612487,1749805847962,-206.0,0.0002359,2]
[365612489,1749805847972,-151.0,0.000236,8]
[365612491,1749805847981,-151.0,0.000236,7]
[365612493,1749805847990,-151.0,0.000236,7]
[365612495,1749805848000,-151.0,0.000236,7]
[365612497,1749805848010,-151.0,0.000236,7]
[365612499,1749805848020,-151.0,0.000236,7]
[365612501,1749805848029,-151.0,0.000236,7]
[365612503,1749805848040,-151.0,0.000236,7]
[365612505,1749805848050,-2000.0,0.000236,2]
[365612507,1749805848060,-6855.99999901,0.00023613,7]
[365612509,1749805848075,-151.0,0.00023613,7]
[365612511,1749805848090,-151.0,0.00023613,7]
[365612513,1749805848101,-151.0,0.00023613,7]
[365612515,1749805848113,-1143.85658911,0.00023659,9]
[365612517,1749805848124,-800.0,0.00023661,2]
[365612519,1749805848136,-5056.0,0.000237,7]
[365612522,1749805848147,-160.0,0.0002371,7]
[365612524,1749805848159,-501.46120462,0.0002371,9]
[365612526,1749805848171,-783.838145,0.00023711,2]
[365612528,1749805848186,-800.0,0.00023711,2]
[365612530,1749805848196,-800.0,0.00023727,2]
[365612532,1749805848206,-168.0,0.00023735,2]
[365612534,1749805848217,-151.0,0.00023743,7]
[365612536,1749805848228,-1143.85658911,0.00023797,9]
[365612538,1749805848243,-58234.47181052,0.000238,3]
[365612540,1749805848253,-250.0,0.000238,2]
[365612542,1749805848264,-250.0,0.000238,2]
[365612544,1749805848276,-250.0,0.000238,2]
[365612546,1749805848287,-250.0,0.000238,2]
[365612548,1749805848298,-250.0,0.000238,2]
[365612550,1749805848315,-250.0,0.000238,2]
[365612552,1749805848336,-250.0,0.000238,2]
[365612554,1749805848347,-250.0,0.000238,2]
[365612556,1749805848356,-250.0,0.000238,2]
[365612558,1749805848366,-250.0,0.000238,2]
[365612560,1749805848376,-250.0,0.000238,2]
[365612562,1749805848386,-250.0,0.000238,2]
[365612564,1749805848398,-300.6,0.000238,2]
[365612567,1749805848408,-160.0,0.000238,3]
[365612569,1749805848418,-151.0,0.000238,7]
[365612571,1749805848428,-151.0,0.000238,7]
[365612573,1749805848441,-151.0,0.000238,7]
[365612575,1749805848451,-151.0,0.000238,7]
[365612577,1749805848461,-156.0,0.000238,2]
[365612579,1749805848471,-273.6,0.000238,2]
[365612581,1749805848481,-273.6,0.000238,2]
[365612583,1749805848491,-151.0,0.000238,7]
[365612585,1749805848501,-151.0,0.000238,7]
[365612587,1749805848511,-151.0,0.000238,7]
[365612589,1749805848521,-151.0,0.000238,7]
[365612591,1749805848531,-12155.5927293,0.000238,2]
[365612593,1749805848541,-151.0,0.000238,7]
[365612595,1749805848552,-3000.0,0.000238,2]
[365612597,1749805848562,-151.0,0.000238,7]
[365612599,1749805848573,-151.0,0.000238,7]
[365612601,1749805848583,-236.21179,0.000238,7]
[365612603,1749805848594,-800.53857,0.000238,7]
[365612605,1749805848605,-800.53857,0.000238,7]
[365612607,1749805848615,-250.0,0.000238,30]
[365612609,1749805848625,-187.606472,0.000238,2]
[365612624,1749805848763,-151.0,0.000238,7]
[365612626,1749805848773,-151.0,0.000238,7]
[365612629,1749805848784,-151.0,0.000238,7]
[365612631,1749805848794,-3000.0,0.0002381,2]
[365612633,1749805848805,-587.0,0.00023817,2]
[365612635,1749805848817,-3000.0,0.0002382,2]
[365612637,1749805848828,-3000.0,0.0002383,2]
[365612639,1749805848838,-460.0,0.00023835,4]
[365612641,1749805848848,-616.93,0.00023835,2]
[365612643,1749805848858,-1456.25,0.00023835,4]
[365612645,1749805848868,-686.66,0.00023835,4]
[365612647,1749805848878,-460.0,0.00023835,4]
[365612649,1749805848888,-747.53,0.00023835,4]
[365612651,1749805848903,-1041.86,0.00023835,4]
[365612653,1749805848914,-654.65,0.00023835,4]
[365612655,1749805848925,-460.0,0.00023835,4]
[365612657,1749805848936,-465.24,0.00023835,4]
[365612659,1749805848946,-553.89,0.00023835,4]
[365612661,1749805848956,-1290.11,0.00023835,4]
[365612663,1749805848966,-1528.23,0.00023835,4]
[365612665,1749805848976,-1484.13,0.00023835,4]
[365612668,1749805848986,-1050.94,0.00023835,4]
[365612670,1749805848997,-1285.01,0.00023835,4]
[365612672,1749805849007,-970.44,0.00023835,4]
[365612674,1749805849018,-460.0,0.00023835,4]
[365612675,1749805849028,-936.65,0.00023835,4]
[365612678,1749805849039,-3000.0,0.0002384,2]
[365612680,1749805849049,-151.0,0.0002384,7]
[365612681,1749805849060,-151.0,0.0002384,7]
[365612683,1749805849070,-209.118853,0.0002384,7]
[365612685,1749805849080,-151.0,0.0002384,7]
[365612688,1749805849090,-151.0,0.0002384,7]
[365612689,1749805849100,-151.0,0.0002384,7]
[365612691,1749805849110,-151.0,0.0002384,7]
[365612693,1749805849120,-3000.0,0.0002385,2]
[365612695,1749805849130,-151.0,0.0002386,7]
[365612697,1749805849140,-3000.0,0.0002386,2]
[365612700,1749805849151,-151.0,0.0002386,7]
[365612701,1749805849162,-244.845925,0.0002386,7]
[365612703,1749805849172,-151.0,0.0002386,7]
[365612705,1749805849182,-155815.0,0.0002387,2]
[365612707,1749805849192,-151.0,0.0002387,7]
[365612710,1749805849202,-151.0,0.0002387,7]
[365612711,1749805849212,-151.0,0.0002387,7]
[365612713,1749805849222,-151.0,0.0002387,7]
[365612715,1749805849234,-206.0,0.0002387,2]
[365612717,1749805849245,-151.610522,0.0002387,7]
[365612720,1749805849256,-151.0,0.0002387,7]
[365612722,1749805849266,-3000.0,0.0002387,2]
[365612723,1749805849277,-227.427426,0.0002387,7]
[365612726,1749805849287,-227.427426,0.0002387,7]
[365612728,1749805849298,-151.0,0.0002387,7]
[365612730,1749805849308,-151.0,0.0002387,7]
[365612732,1749805849321,-151.0,0.0002387,7]
[365612734,1749805849332,-151.0,0.0002387,7]
[365612736,1749805849342,-151.0,0.0002387,7]
[365612738,1749805849352,-151.0,0.0002387,7]
[365612740,1749805849362,-151.0,0.0002387,7]
[365612742,1749805849372,-151.0,0.0002387,7]
[365612744,1749805849382,-151.0,0.0002387,7]
[365612746,1749805849392,-151.0,0.0002387,7]
[365612748,1749805849405,-151.0,0.0002387,7]
[365612750,1749805849415,-151.0,0.0002387,7]
[365612752,1749805849425,-800.53857,0.0002387,7]
[365612754,1749805849435,-800.53857,0.0002387,7]
[365612756,1749805849445,-151.0,0.0002387,7]
[365612758,1749805849455,-151.0,0.0002387,7]
[365612760,1749805849465,-223.571744,0.0002387,7]